[Event "Polish Youth 1st League 2022"]
[Site "Lublin"]
[Date "2022.06.29"]
[Round "5.13"]
[White "Panek, Bartosz"]
[Black "Suder, Jakub"]
[Result "1-0"]
[ECO "B40"]
[WhiteElo "2022"]
[BlackElo "2306"]
[Annotator "TA"]
[PlyCount "119"]
[EventDate "2022.06.24"]
[EventType "team-tourn"]
[EventCountry "POL"]
[SourceTitle "playchess.com"]
[Source "ChessBase"]
[SourceQuality "1"]
[TimeControl "40/5400+30:1800+30"]

{[%evp 9,119,10,10,14,16,0,0,0,22,23,34,34,34,34,29,37,86,82,87,89,97,0,10,8,6,0,0,0,0,0,0,-3,24,15,25,23,45,52,108,94,108,92,95,30,79,68,109,109,82,62,209,207,365,357,769,754,752,745,957,944,840,556,1029,375,822,307,302,304,304,301,296,282,253,239,301,282,375,375,364,360,555,542,564,570,540,506,480,434,448,427,2017,3315,2398,2478,1726,718,1818,1738,7739,5873,10964,10792,6942,6312,4952,4673,29988,29989,29990,29990,29994,30]} 1. e4 {[%emt 0:00:04]} c5 {[%emt 0:00:07]} 2. Nf3 {[%emt 0:00:05]} e6 {[%emt 0:00:04]} 3. Qe2 {[%emt 0:00:04]} Nc6 {[%emt 0:00:14]} 4. g3 {[%emt 0:00:07]} Nf6 {[%emt 0:00:45]} 5. Bg2 {[%emt 0:00:30]} Be7 {[%emt 0:00:36]} 6. e5 {[%emt 0:00:06] C00: French: Unusual White 2nd moves.} Nd5 {[%emt 0:00:18]} 7. Nc3 {[%emt 0:00:07]} O-O {[%emt 0:07:01]} 8. O-O {[%emt 0:02:20] The position is equal.} Ndb4 {[%emt 0:05:36]} 9. d3 {[%emt 0:02:52]} Nd4 {[%emt 0:02:47]} 10. Nxd4 {[%emt 0:00:25]} cxd4 {[%emt 0:00:04]} 11. Ne4 {[%emt 0:09:27] [#]} Nc6 $146 {[%emt 0:06:50]} ({Predecessor:} 11... Qc7 12. c3 Nc6 13. Bf4 Qd8 14. c4 f5 15. exf6 gxf6 16. a3 d6 17. Bh6 Rf7 {1-0 (26) Admiraal,M (2458)-Debard,M (2211) Barcelona 2016}) 12. Bf4 {[%emt 0:00:10]} Kh8 {[%emt 0:03:01]} (12... g5 $2 13. Nxg5 $1 {[%mdl 512]} Bxg5 14. Qg4 $18) (12... Qa5 $1 $14 {is superior.}) 13. h4 {[%emt 0:00:10]} f5 {[%emt 0:04:18]} 14. exf6 {[%emt 0:13:30]} gxf6 {[%emt 0:00:23]} 15. Bd6 {[%emt 0:00:21]} (15. Nd6 $1 $16) 15... Bxd6 {[%emt 0:02:41]} 16. Nxd6 {[%emt 0:00:08]} Qe7 {[%emt 0:02:43]} 17. Nxc8 {[%emt 0:06:04]} Raxc8 {[%emt 0:00:15]} 18. c3 {[%emt 0:00:43]} dxc3 {[%emt 0:02:14]} 19. bxc3 {[%emt 0:00:05]} b6 {[%emt 0:01:48]} 20. Rac1 {[%emt 0:04:36]} Qd6 {[%emt 0:01:47]} 21. Rfd1 {[%emt 0:01:28]} f5 {[%emt 0:00:55]} 22. d4 {[%emt 0:08:30]} Ne7 {[%emt 0:03:36]} 23. c4 {[%emt 0:19:25][%cal Oc4c5]} Ng8 {[%emt 0:04:17]} ({Black should try} 23... f4 $14) 24. c5 {[%emt 0:02:59]} Qe7 {[%emt 0:02:30]} 25. cxb6 {[%emt 0:03:34]} axb6 {[%emt 0:00:16]} 26. d5 {[%emt 0:03:01]} (26. Qe5+ $16 Nf6 27. d5) 26... e5 {[%emt 0:01:52]} (26... Rxc1 $1 $11 27. Rxc1 e5) 27. d6 {[%emt 0:06:49]} Qe6 {[%emt 0:01:11]} 28. Rxc8 $1 {[%emt 0:04:44] 0x0.0008620c465fdp-1022s more active pieces.} Rxc8 {[%emt 0:00:13]} 29. Bd5 {[%emt 0:00:47]} Qe8 {[%emt 0:02:38] Loses the game.} (29... Qf6 $14) 30. Qb2 $1 $18 {[%emt 0:03:17]} Nf6 $2 {[%emt 0:02:46] [#]} (30... f4 31. gxf4 (31. Qxb6 fxg3 32. fxg3 Rc3 $11) 31... Nf6) 31. Re1 $1 {[%emt 0:01:21][%cal Bd1e1,Be1e5,Be5e7][%mdl 32]} ({Not} 31. Qxb6 f4 $14) 31... Qg6 $2 {[%emt 0:09:19]} (31... Nxd5 $2 32. Rxe5 Qg8 33. Re8+ Nc3 34. Rxg8+ Kxg8 35. Qxb6 $18) (31... Ne4 32. Bxe4 (32. Qxb6 Nf6 $18) 32... fxe4 33. Rxe4 Rc5 34. Qxb6 Rd5) 32. Rxe5 {[%emt 0:00:41]} Rf8 {[%emt 0:01:10]} 33. Re7 {[%emt 0:01:16]} f4 {[%emt 0:00:35]} 34. Be4 {[%emt 0:01:08]} Qg4 {[%emt 0:00:32]} 35. Kh2 {[%emt 0:04:16]} Qd1 {[%emt 0:02:00]} 36. Kg2 $2 {[%emt 0:02:47]} (36. Rxd7 Kg8 {[#]} 37. Bxh7+ $1 {[%mdl 512]} Kh8 38. Bf5) 36... fxg3 {[%emt 0:01:52]} (36... Qxd6 37. Rxh7+ Kg8) 37. fxg3 $2 {[%emt 0:00:05]} (37. Qe5 {Threatening mate with Rxh7+.} Qh5 38. Qxh5 Nxh5 39. Rxh7+ Kg8 40. Rxh5) 37... Qxd6 {[%emt 0:04:57]} 38. Rxh7+ {[%emt 0:00:12]} Kg8 {[%emt 0:00:05]} 39. Qb3+ {[%emt 0:01:13]} Qe6 {[%emt 0:00:50]} 40. Re7 $1 {[%emt 0:00:00] Dancing on a razor blade.} Qxb3 {[%emt 0:00:00]} 41. axb3 {[%emt 0:00:27][%mdl 4096] Endgame KRB-KRN} Rc8 {[%emt 0:03:41]} 42. Bf3 {[%emt 0:03:53]} Rc3 {[%emt 0:03:20]} 43. g4 {[%emt 0:01:49][%cal Bg3g4,Bg4g5][%mdl 32] Threatens to win with g5.} Kf8 {[%emt 0:00:26]} 44. Re5 {[%emt 0:00:57]} Rxb3 {[%emt 0:01:45]} (44... Ne8 {was worth a try.} 45. Rb5 Ng7 46. Rxb6 Ne6) 45. g5 {[%emt 0:00:07]} Ng8 {[%emt 0:01:09]} 46. Rf5+ {[%emt 0:01:18]} Kg7 {[%emt 0:01:56]} 47. Rd5 {[%emt 0:03:24]} Ne7 {[%emt 0:02:37]} 48. Rxd7 {[%emt 0:00:06]} Kf8 {[%emt 0:00:14]} 49. Rd6 {[%emt 0:01:25]} Kg7 {[%emt 0:03:10]} (49... Rb2+ $142 50. Kh3 Rb5) 50. h5 {[%emt 0:05:05][%cal Bh4h5,Bh5h6][%mdl 32] h6+ would kill now.} Re3 {[%emt 0:03:31]} 51. h6+ {[%emt 0:05:38]} Kh7 {[%emt 0:01:30]} 52. Rf6 {[%emt 0:00:31]} Re5 {[%emt 0:02:02]} 53. Rf7+ {[%emt 0:00:34]} Kh8 {[%emt 0:00:17]} 54. Kh3 {[%emt 0:01:42] White wants to mate with Kg4.} b5 {[%emt 0:04:13]} 55. Kg4 {[%emt 0:03:03] Intending Bd1 and mate.} b4 {[%emt 0:01:03]} 56. Rf8+ {[%emt 0:00:24]} Kh7 {[%emt 0:02:02]} 57. Rb8 {[%emt 0:00:04]} Ng8 {[%emt 0:02:29]} 58. Kf4 {[%emt 0:03:28] White mates.} Re6 {[%emt 0:02:16]} 59. Be4+ {[%emt 0:00:06]} Kh8 {[%emt 0:00:01]} 60. Rxg8+ $2 {[%emt 0:02:07] Weighted Error Value: White=0.34/Black=0.54} 1-0

[Event "Polish Youth 1st League 2022"]
[Site "Lublin"]
[Date "2022.06.29"]
[Round "5.14"]
[White "Dziewonski, Dariusz"]
[Black "Kubik, Rafal"]
[Result "1-0"]
[ECO "B76"]
[WhiteElo "1976"]
[BlackElo "1827"]
[Annotator "NA"]
[PlyCount "65"]
[EventDate "2022.06.24"]
[EventType "team-tourn"]
[EventCountry "POL"]
[SourceTitle "playchess.com"]
[Source "ChessBase"]
[SourceQuality "1"]
[TimeControl "40/5400+30:1800+30"]

1. e4 {[%emt 0:00:02]} c5 {[%emt 0:00:16]} 2. Nf3 {[%emt 0:00:05]} d6 {[%emt 0:00:05]} 3. d4 {[%emt 0:00:05]} cxd4 {[%emt 0:00:05]} 4. Nxd4 {[%emt 0:00:03]} Nf6 {[%emt 0:00:12]} 5. Nc3 {[%emt 0:00:04]} g6 {[%emt 0:00:08]} 6. Be3 {[%emt 0:00:05]} Bg7 {[%emt 0:00:06]} 7. f3 {[%emt 0:00:06]} O-O {[%emt 0:00:05]} 8. Qd2 {[%emt 0:00:02]} Nc6 {[%emt 0:00:05]} 9. O-O-O {[%emt 0:00:04]} d5 {[%emt 0:00:04]} 10. Kb1 {[%emt 0:00:03]} Nxd4 {[%emt 0:00:07]} 11. e5 {[%emt 0:00:05]} Nf5 {[%emt 0:00:05]} 12. exf6 {[%emt 0:00:05]} exf6 {[%emt 0:00:05]} 13. Bc5 {[%emt 0:00:21]} d4 {[%emt 0:00:06]} 14. Bxf8 {[%emt 0:00:08]} Qxf8 {[%emt 0:00:04]} 15. Nb5 {[%emt 0:00:06]} Ne3 {[%emt 0:00:37]} 16. Re1 {[%emt 0:00:04]} f5 {[%emt 0:00:09]} 17. f4 {[%emt 0:00:06]} Be6 {[%emt 0:09:34]} 18. Nxd4 {[%emt 0:02:32]} Nxf1 {[%emt 0:00:35]} 19. Rhxf1 {[%emt 0:00:12]} Bd5 20. Nxf5 {[%emt 0:16:41]} Bc4 {[%emt 0:09:21]} 21. Nxg7 {[%emt 0:04:01]} Bxf1 {[%emt 0:00:53]} 22. Rxf1 {[%emt 0:00:16]} Qxg7 {[%emt 0:01:27]} 23. Qd7 {[%emt 0:03:39]} b6 {[%emt 0:04:58]} 24. Re1 {[%emt 0:17:26]} Qf6 {[%emt 0:06:57]} 25. g3 {[%emt 0:05:33]} a5 {[%emt 0:05:54]} 26. c3 {[%emt 0:07:33]} g5 {[%emt 0:04:07]} (26... Kf8 {was necessary.} 27. Rd1 Rb8) 27. Qd5 {[%emt 0:06:08]} Rd8 $18 {[%emt 0:01:28]} 28. Qxg5+ {[%emt 0:00:14]} Qxg5 {[%emt 0:00:07]} 29. fxg5 {[%emt 0:00:04]} Rd2 {[%emt 0:00:59]} 30. h4 {[%emt 0:00:20]} Kg7 {[%emt 0:00:58]} 31. Re3 {[%emt 0:01:15]} Kg6 {[%emt 0:00:30]} 32. Rf3 {[%emt 0:00:18]} Rg2 {[%emt 0:01:39]} 33. a4 {[%emt 0:00:44]} 1-0

[Event "Polish Youth 1st League 2022"]
[Site "Lublin"]
[Date "2022.06.29"]
[Round "5.15"]
[White "Karwot, Marek"]
[Black "Maj, Samuel"]
[Result "0-1"]
[ECO "B22"]
[WhiteElo "1454"]
[BlackElo "1906"]
[Annotator "NA RC"]
[PlyCount "120"]
[EventDate "2022.06.24"]
[EventType "team-tourn"]
[EventCountry "POL"]
[SourceTitle "playchess.com"]
[Source "ChessBase"]
[SourceQuality "1"]
[TimeControl "40/5400+30:1800+30"]

1. e4 {[%emt 0:00:02]} c5 {[%emt 0:00:01]} 2. c3 {[%emt 0:00:10]} Nf6 {[%emt 0:00:06]} 3. e5 {[%emt 0:00:05]} Nd5 {[%emt 0:00:09]} 4. Nf3 {[%emt 0:00:04]} e6 {[%emt 0:00:15]} 5. d4 {[%emt 0:00:24]} cxd4 {[%emt 0:00:10]} 6. cxd4 {[%emt 0:00:11]} d6 {[%emt 0:00:03]} 7. Bc4 {[%emt 0:00:53]} Nb6 {[%emt 0:00:02]} 8. Bd3 {[%emt 0:03:11]} Bd7 {[%emt 0:00:14]} 9. Be4 {[%emt 0:08:08]} Bc6 {[%emt 0:00:58]} 10. Bxc6+ {[%emt 0:03:08]} Nxc6 {[%emt 0:00:11]} 11. O-O {[%emt 0:01:31]} Be7 {[%emt 0:02:15]} 12. Nc3 {[%emt 0:05:49]} O-O {[%emt 0:03:23]} 13. Qe2 {[%emt 0:04:34]} Rc8 {[%emt 0:04:58]} 14. Rd1 {[%emt 0:06:35]} Nb4 {[%emt 0:07:02]} 15. a3 {[%emt 0:12:39]} N4d5 {[%emt 0:01:35]} 16. Nxd5 {[%emt 0:03:05]} Nxd5 {[%emt 0:00:51]} 17. Be3 {[%emt 0:01:56]} Qb6 {[%emt 0:02:51]} 18. Rac1 {[%emt 0:05:55]} Nxe3 {[%emt 0:05:00]} 19. fxe3 {[%emt 0:01:32]} Qb3 {[%emt 0:01:29]} 20. exd6 {[%emt 0:06:00]} Bxd6 {[%emt 0:00:31]} 21. Kf2 {[%emt 0:06:24]} h6 {[%emt 0:03:00]} 22. Rxc8 {[%emt 0:02:39]} Rxc8 {[%emt 0:00:15]} 23. Rd3 {[%emt 0:01:28]} Qb6 {[%emt 0:02:48]} 24. Qd2 {[%emt 0:02:45]} Rc4 {[%emt 0:04:03]} 25. Rc3 {[%emt 0:03:52]} Qc7 {[%emt 0:01:09]} 26. Rxc4 {[%emt 0:01:29]} Qxc4 {[%emt 0:00:03]} 27. g3 {[%emt 0:02:24]} Qc6 {[%emt 0:02:21]} 28. Qd1 {[%emt 0:03:43]} b6 {[%emt 0:02:17]} 29. Nd2 {[%emt 0:01:57]} Be7 {[%emt 0:02:49]} 30. Nf3 {[%emt 0:02:17]} Bd6 {[%emt 0:00:45]} 31. Nd2 {[%emt 0:00:20]} e5 {[%emt 0:01:20]} 32. Nf3 {[%emt 0:01:27]} e4 {[%emt 0:02:37]} 33. Nd2 {[%emt 0:01:14]} Be7 {[%emt 0:02:07]} 34. Qb1 {[%emt 0:01:42]} f5 {[%emt 0:01:58]} 35. Qa2+ {[%emt 0:02:13]} Kh7 {[%emt 0:01:01]} 36. Qc4 {[%emt 0:02:31]} Qg6 {[%emt 0:02:05]} 37. Qe2 {[%emt 0:01:58]} Bd6 {[%emt 0:04:15]} 38. Nf1 {[%emt 0:02:08]} Qe6 {[%emt 0:02:12]} 39. Nd2 {[%emt 0:00:35]} Qf7 {[%emt 0:02:21]} 40. Nc4 {[%emt 0:00:00]} Bc7 {[%emt 0:00:00]} 41. Nd2 {[%emt 0:08:50]} Bb8 {[%emt 0:04:24]} 42. Nc4 {[%emt 0:03:09]} b5 {[%emt 0:02:31]} 43. Nd2 {[%emt 0:01:50]} a6 {[%emt 0:01:21]} 44. Nb1 {[%emt 0:03:00]} h5 {[%emt 0:03:06]} 45. Nc3 {[%emt 0:01:04]} h4 $1 {[%emt 0:02:53]} 46. Kg2 {[%emt 0:02:12] [#]} Qg6 $1 {[%emt 0:05:24]} 47. Qf2 {[%emt 0:01:18]} Qg4 {[%emt 0:01:05]} 48. Ne2 {[%emt 0:03:18]} h3+ {[%emt 0:02:14]} 49. Kf1 {[%emt 0:01:18]} a5 {[%emt 0:06:14]} (49... Bd6 $17) 50. Ke1 {[%emt 0:02:45]} g5 {[%emt 0:02:16]} 51. Nc3 {[%emt 0:02:08] [#]} (51. Qf1 $11 {remains equal.}) 51... Kg7 {[%emt 0:08:38]} (51... Kg6 $1 $17) 52. Nxb5 $19 {[%emt 0:05:09]} (52. Qc2 $11) 52... f4 {[%emt 0:03:18]} 53. exf4 $2 {[%emt 0:00:50]} (53. gxf4 $17 gxf4 54. Nc3) 53... gxf4 {[%emt 0:00:58]} 54. gxf4 {[%emt 0:00:49]} Bxf4 {[%emt 0:02:46]} 55. Kf1 {[%emt 0:00:44]} e3 {[%emt 0:06:39]} 56. Qe2 {[%emt 0:00:31]} Qf5 {[%emt 0:03:04]} 57. Kg1 {[%emt 0:00:29]} Qb1+ {[%emt 0:01:04]} 58. Qf1 {[%emt 0:00:30]} Qg6+ {[%emt 0:00:08]} 59. Kh1 {[%emt 0:00:18]} Qe4+ {[%emt 0:00:21]} 60. Kg1 {[%emt 0:00:41]} e2 {[%emt 0:00:10]} 0-1

[Event "Polish Youth 1st League 2022"]
[Site "Lublin"]
[Date "2022.06.29"]
[Round "5.16"]
[White "Jamrozik, Maciej"]
[Black "Niesporek, Franciszek"]
[Result "0-1"]
[ECO "E32"]
[WhiteElo "1251"]
[BlackElo "1332"]
[Annotator "NA RC"]
[PlyCount "96"]
[EventDate "2022.06.24"]
[EventType "team-tourn"]
[EventCountry "POL"]
[SourceTitle "playchess.com"]
[Source "ChessBase"]
[SourceQuality "1"]
[TimeControl "40/5400+30:1800+30"]

1. d4 {[%emt 0:00:04]} Nf6 {[%emt 0:00:06]} 2. c4 {[%emt 0:00:04]} e6 {[%emt 0:00:09]} 3. Nc3 {[%emt 0:00:05]} Bb4 {[%emt 0:00:06]} 4. Qc2 {[%emt 0:00:09]} O-O {[%emt 0:00:46]} 5. Nf3 {[%emt 0:00:46]} d5 {[%emt 0:00:17]} 6. e3 {[%emt 0:00:14]} c5 {[%emt 0:00:51]} 7. cxd5 {[%emt 0:00:53]} exd5 {[%emt 0:00:21]} 8. dxc5 {[%emt 0:01:50]} Nbd7 {[%emt 0:01:24]} 9. a3 {[%emt 0:00:14]} Bxc3+ {[%emt 0:00:06]} 10. Qxc3 {[%emt 0:00:38]} Ne4 {[%emt 0:05:51]} 11. Qc2 {[%emt 0:00:43]} a5 {[%emt 0:01:26]} 12. c6 {[%emt 0:03:52]} Ndc5 {[%emt 0:15:42]} 13. cxb7 {[%emt 0:05:19]} Bxb7 {[%emt 0:00:06]} 14. Be2 {[%emt 0:04:22]} a4 {[%emt 0:02:59]} 15. Nd4 {[%emt 0:06:37]} Rc8 {[%emt 0:02:39]} 16. Qd1 {[%emt 0:02:34]} Qh4 {[%emt 0:14:43]} 17. O-O {[%emt 0:05:47]} f5 {[%emt 0:06:09]} 18. b4 {[%emt 0:05:55]} axb3 {[%emt 0:00:23]} 19. Nxb3 {[%emt 0:00:58]} Nc3 {[%emt 0:00:15]} 20. Qc2 {[%emt 0:14:55]} Nxe2+ {[%emt 0:00:36]} 21. Qxe2 {[%emt 0:00:43]} Nxb3 {[%emt 0:00:11]} 22. Rb1 {[%emt 0:04:09]} Qc4 {[%emt 0:00:11]} 23. Qb2 {[%emt 0:03:45]} Ba6 {[%emt 0:02:05]} 24. Rd1 {[%emt 0:00:20]} Nxc1 {[%emt 0:05:21]} 25. Rbxc1 {[%emt 0:00:46]} Qb5 {[%emt 0:01:00]} 26. Qe5 {[%emt 0:01:18]} Qd7 {[%emt 0:03:35]} 27. Rb1 {[%emt 0:02:40]} Bc4 {[%emt 0:01:56]} 28. Rb4 {[%emt 0:01:52]} Rfe8 {[%emt 0:02:48]} 29. Qg3 {[%emt 0:00:07]} Qc7 {[%emt 0:02:01]} 30. Qf3 {[%emt 0:01:17]} Qe5 {[%emt 0:00:35]} 31. Rdb1 {[%emt 0:01:21]} Bd3 {[%emt 0:01:15]} 32. Rd1 {[%emt 0:01:08]} Be4 {[%emt 0:01:51]} 33. Qh5 {[%emt 0:00:27]} Rb8 {[%emt 0:01:54]} 34. Rbd4 {[%emt 0:01:14]} Red8 {[%emt 0:02:55]} 35. f3 {[%emt 0:01:41]} Bc2 {[%emt 0:00:24]} 36. Re1 {[%emt 0:01:33]} Rb1 {[%emt 0:00:54]} 37. Rxb1 {[%emt 0:00:10]} Qxe3+ {[%emt 0:00:24]} 38. Kh1 {[%emt 0:00:10]} Bxb1 {[%emt 0:00:34]} 39. Rd1 {[%emt 0:00:06]} Bc2 {[%emt 0:00:38]} 40. Rg1 {[%emt 0:00:00]} d4 {[%emt 0:00:00]} 41. Qh4 {[%emt 0:00:36]} Re8 {[%emt 0:01:09]} 42. Qg3 {[%emt 0:00:41]} Qe5 {[%emt 0:02:27]} 43. Qf2 {[%emt 0:00:11]} d3 {[%emt 0:00:47]} 44. h3 {[%emt 0:00:58]} Qe3 {[%emt 0:01:06]} 45. Qg3 {[%emt 0:02:12]} d2 {[%emt 0:00:32]} 46. Qd6 {[%emt 0:00:29]} Qxg1+ {[%emt 0:00:11]} 47. Kxg1 {[%emt 0:00:09]} d1=Q+ {[%emt 0:00:09]} 48. Qxd1 {[%emt 0:00:06]} Bxd1 {[%emt 0:00:07]} 0-1

[Event "Polish Youth 1st League 2022"]
[Site "Lublin"]
[Date "2022.06.29"]
[Round "5.17"]
[White "Bugaj, Hanna"]
[Black "Uliasz, Katarzyna"]
[Result "1/2-1/2"]
[ECO "A49"]
[WhiteElo "1779"]
[BlackElo "1526"]
[Annotator "NA RC"]
[PlyCount "60"]
[EventDate "2022.06.24"]
[EventType "team-tourn"]
[EventCountry "POL"]
[SourceTitle "playchess.com"]
[Source "ChessBase"]
[SourceQuality "1"]
[TimeControl "40/5400+30:1800+30"]

1. d4 {[%emt 0:00:03]} Nf6 {[%emt 0:00:04]} 2. Nf3 {[%emt 0:00:07]} g6 {[%emt 0:00:16]} 3. g3 {[%emt 0:00:45]} Bg7 {[%emt 0:01:00]} 4. c4 {[%emt 0:00:23]} c5 {[%emt 0:01:52]} 5. Bg2 {[%emt 0:08:11]} O-O {[%emt 0:01:43]} 6. O-O {[%emt 0:00:41]} cxd4 {[%emt 0:11:29]} 7. Nxd4 {[%emt 0:00:20]} Nc6 {[%emt 0:00:06]} 8. Nc3 {[%emt 0:09:46]} Qb6 {[%emt 0:05:16]} 9. Nc2 {[%emt 0:09:16]} d6 {[%emt 0:03:07]} 10. Nd5 {[%emt 0:07:16]} Qd8 {[%emt 0:08:05]} 11. Bg5 {[%emt 0:04:38]} Nxd5 {[%emt 0:03:12]} 12. cxd5 {[%emt 0:00:11]} Ne5 {[%emt 0:00:37]} 13. Nd4 {[%emt 0:09:33]} Nc4 {[%emt 0:03:52]} 14. b3 {[%emt 0:02:46]} Ne5 {[%emt 0:05:44]} 15. Rc1 {[%emt 0:02:50]} h6 {[%emt 0:00:44]} 16. Be3 {[%emt 0:03:16]} Ng4 {[%emt 0:02:03]} 17. Qd3 {[%emt 0:05:39]} Nxe3 {[%emt 0:03:54]} 18. Qxe3 {[%emt 0:00:18]} Qb6 {[%emt 0:02:33]} 19. Rc4 {[%emt 0:02:05]} Re8 {[%emt 0:05:21]} 20. Rfc1 {[%emt 0:06:19]} Bd7 {[%emt 0:01:35]} 21. Qd2 {[%emt 0:06:50]} Rac8 {[%emt 0:02:18]} 22. e3 {[%emt 0:02:08]} Rxc4 {[%emt 0:01:15]} 23. Rxc4 {[%emt 0:00:09]} Rc8 {[%emt 0:00:17]} 24. Rxc8+ {[%emt 0:01:48]} Bxc8 {[%emt 0:00:01]} 25. Qc2 {[%emt 0:00:28]} Bd7 {[%emt 0:00:45]} 26. Nf3 {[%emt 0:00:55]} Qa5 {[%emt 0:01:52]} 27. Nd2 {[%emt 0:03:04]} Qc3 {[%emt 0:03:35]} 28. Qxc3 {[%emt 0:01:05]} Bxc3 {[%emt 0:00:02]} 29. Nb1 {[%emt 0:06:01]} Bb2 {[%emt 0:01:29]} 30. Be4 {[%emt 0:01:07]} Bb5 {[%emt 0:02:45]} 1/2-1/2

[Event "Polish Youth 1st League 2022"]
[Site "Lublin"]
[Date "2022.06.29"]
[Round "5.18"]
[White "Tokarz, Gabriela"]
[Black "Sprzeczka, Emilia"]
[Result "1/2-1/2"]
[ECO "D86"]
[WhiteElo "1469"]
[BlackElo "1692"]
[Annotator "NA RC"]
[PlyCount "82"]
[EventDate "2022.06.24"]
[EventType "team-tourn"]
[EventCountry "POL"]
[SourceTitle "playchess.com"]
[Source "ChessBase"]
[SourceQuality "1"]
[TimeControl "40/5400+30:1800+30"]

1. d4 {[%emt 0:00:03]} Nf6 {[%emt 0:00:09]} 2. c4 {[%emt 0:00:05]} g6 {[%emt 0:00:07]} 3. Nc3 {[%emt 0:00:05]} d5 {[%emt 0:00:07]} 4. cxd5 {[%emt 0:00:07]} Nxd5 {[%emt 0:00:05]} 5. e4 {[%emt 0:00:12]} Nxc3 {[%emt 0:00:07]} 6. bxc3 {[%emt 0:00:04]} Bg7 {[%emt 0:00:08]} 7. Bc4 {[%emt 0:00:13]} c5 {[%emt 0:00:13]} 8. Ne2 {[%emt 0:00:06]} Nc6 {[%emt 0:00:21]} 9. Be3 {[%emt 0:00:11]} O-O {[%emt 0:00:15]} 10. O-O {[%emt 0:00:05]} Bg4 {[%emt 0:00:11]} 11. f3 {[%emt 0:00:26]} Bd7 {[%emt 0:00:27]} 12. Rb1 {[%emt 0:02:04]} Qc7 {[%emt 0:00:17]} 13. Bb5 {[%emt 0:04:12]} Rad8 {[%emt 0:13:14]} 14. Bxc6 {[%emt 0:03:22]} Bxc6 {[%emt 0:00:39]} 15. Qb3 {[%emt 0:01:20]} e6 {[%emt 0:15:52]} 16. Rfd1 {[%emt 0:04:31]} Rfe8 {[%emt 0:07:24]} 17. Qa3 {[%emt 0:07:57]} cxd4 {[%emt 0:03:58]} 18. cxd4 {[%emt 0:00:44]} Qd7 {[%emt 0:16:15]} 19. Rd2 {[%emt 0:03:48]} b6 {[%emt 0:08:52]} 20. Rc1 {[%emt 0:05:19]} Rc8 {[%emt 0:03:37]} 21. Rdc2 {[%emt 0:01:45]} Bb5 {[%emt 0:02:23]} 22. Rxc8 {[%emt 0:07:37]} Rxc8 {[%emt 0:00:07]} 23. Rxc8+ {[%emt 0:00:16]} Qxc8 {[%emt 0:00:05]} 24. Nc3 {[%emt 0:06:59]} Qc4 {[%emt 0:04:57]} 25. Nxb5 {[%emt 0:02:37]} Qxb5 {[%emt 0:00:07]} 26. Kf2 {[%emt 0:03:40]} Qc4 {[%emt 0:05:33]} 27. Qxa7 {[%emt 0:02:13]} Bxd4 {[%emt 0:00:27]} 28. Bxd4 {[%emt 0:00:26]} Qxd4+ {[%emt 0:00:07]} 29. Kg3 {[%emt 0:00:59]} Kg7 {[%emt 0:00:48]} 30. h3 {[%emt 0:01:50]} Qe5+ {[%emt 0:01:02]} 31. Kf2 {[%emt 0:00:13]} b5 {[%emt 0:00:44]} 32. a3 {[%emt 0:02:06]} Qb2+ {[%emt 0:00:30]} 33. Kg3 {[%emt 0:00:45]} h5 {[%emt 0:02:01]} 34. Qe3 {[%emt 0:02:49]} Qe5+ {[%emt 0:02:48]} 35. Kf2 {[%emt 0:00:14]} Qd6 {[%emt 0:01:56]} 36. Qb3 {[%emt 0:01:51]} Qc5+ {[%emt 0:00:31]} 37. Qe3 {[%emt 0:02:19]} Qc4 {[%emt 0:00:37]} 38. Kg3 {[%emt 0:01:13]} e5 {[%emt 0:01:27]} 39. Qb6 {[%emt 0:06:26]} Qe2 {[%emt 0:03:16]} 40. Qc5 {[%emt 0:00:00]} Qb2 {[%emt 0:00:00]} 41. Qe3 {[%emt 0:03:09]} Qa1 {[%emt 0:01:50]} 1/2-1/2